Workbook

Sheet 申請様式
B1: （様式第1号）
B2: 補助金交付申請書
D3: 年 月 日 | M3: ←申請日を記入
B4: 浜松市長 様
B6: 年度において浜松市天竜材の家百年住居る事業を実施したいので、浜松市天竜材の家百年住居る事業費補助金交付要綱の第4条に基づき下記のとおり申請いたします。
B7: 補助金申請額 | I7: =K26 -> 0 | L7: 円
B8: 申 込 者 | C8: 現住所 | F8: 〒
C10: ふりがな
C11: 氏 名
F12: （署名又は記名押印をしてください）
C13: 生年月日 | F13: 平成 | H13: 年 | J13: 月 | L13: 日
C14: 電話番号
C15: 市税の納付又は納入の確認について同意（同意する場合は下記に☑）
D16: 浜松市天竜材の家百年住居る事業費補助金要綱第２条の規定により、市において、申請者の市税の納付又は納入状況について確認することに同意します。 | M16: ←□をチェック
C17: 暴力団排除に関する誓約（誓約及び承諾する場合は下記に☑）
D18: 浜松市天竜材の家百年住居る事業費補助金の交付申請にあたり、下記事項について誓約し、承諾します。 （１）次に掲げる者のいずれにも該当しません。 ・暴力団（浜松市暴力団排除条例(平成２４年浜松市条例第８１号。以下「条例」という。)第２条第１号に規定する暴力団をいう。） ・暴力団員等（条例第２条第４号に規定する暴力団員等をいう。以下同じ。） ・暴力団員等と密接な関係を有する者 ・（法人その他の団体の場合）上記３点に掲げる者のいずれかが役員等（無限責任社員、取締役、執行役若しくは監査役又はこれらに準じるべきもの、支配人及び清算人をいう。）となっている法人その他の団体 （２）浜松市が暴力団排除に必要な場合には、静岡県警察本部又は管轄警察署に照会することを承諾します。 | M18: ←□をチェック
B19: 住宅の概要 | C19: 建設場所
C20: 延床面積 | G20: m2 | H20: 構造材の総使用量 （延床面積×0.2×0.7） | K20: =F20*0.2*0.7 -> 0 | L20: m3
C21: 上棟予定日 | F21: 年 月 日 | H21: 完了予定日 | K21: 年 月 日
B22: ＦＳＣ認証材 | C22: 構造材使用量 （小数点以下４桁まで記入） | G22: m3 | H22: 内装材使用量 （小数点以下４桁まで記入） | L22: m3
C23: 使用量の合計（小数点以下4桁まで記入） | K23: =F22+K22 -> 0 | L23: m3
C24: ＦＳＣ認証材の使用割合（％） | K24: =IF(F22/K20*100>=80,"80%以上","80％未満") -> 
B25: 補助額 | C25: １㎥あたり | F25: 20000 | G25: 円 | H25: 補助額 | K25: =MIN(T25,S25) -> 0 | L25: 円 | S25: 400000 | T25: =ROUNDDOWN((F22+K22)*F25,-3) -> 0
C26: COC取得工務店加算 | F26: =IF(T26=1,"100,000",0) -> 0 | G26: 円 | H26: 総補助額 | K26: =K25+F26 -> 0 | L26: 円 | M26: ←COC取得工務店加算の有無 プルダウンから選択 | T26: =COUNTIF(E26,"有") -> 0
B27: 請負業者 | C27: 事業所名 | H27: 住所
C28: 代表者名 | H28: 電話
C29: COC認証の有無 | H29: 認証番号 | M29: ←COC認証の有無 プルダウンから選択
B30: 納入業者 | C30: 事業所名 | H30: 住所
C31: 代表者名 | H31: 電話
C32: COC認証番号 | H32: 担当木協
C33: しずおか優良木材認定製品又はＪＡＳ認定製品 | M33: ←しずおか優良木材認定製品又はJAS認定製品の〇× プルダウンから選択
B34: 添付書類 | F34: 木拾い表 | M34: ←添付書類の□をチェック
F35: 建築確認済証
F36: 各階平面図
F37: 現地案内図
F38: COC認証番号を証明する書類

Sheet 申請様式 (記入例)
B1: （様式第1号）
B2: 補助金交付申請書
D3: 令和８年５月５日 | M3: ←申請日を記入
B4: 浜松市長 様
B6: 令和８年度年度において浜松市天竜材の家百年住居る事業を実施したいので、浜松市天竜材の家百年住居る事業費補助金交付要綱の第4条に基づき下記のとおり申請いたします。
B7: 補助金申請額 | I7: =K26 -> 402000 | L7: 円
B8: 申 込 者 | C8: 現住所 | F8: 〒 | G8: 430-8652
F9: 浜松市中央区元城町103-2
C10: ふりがな | F10: りんぎょう たろう
C11: 氏 名 | F11: 林業 太郎
F12: （署名又は記名押印をしてください）
C13: 生年月日 | F13: 昭和 | G13: 55 | H13: 年 | I13: 3 | J13: 月 | K13: 15 | L13: 日
C14: 電話番号 | F14: 090-1234-5678
C15: 市税の納付又は納入の確認について同意（同意する場合は下記に☑）
C16: ☑ | D16: 浜松市天竜材の家百年住居る事業費補助金要綱第２条の規定により、市において、申請者の市税の納付又は納入状況について確認することに同意します。 | M16: ←□をチェック
C17: 暴力団排除に関する誓約（誓約及び承諾する場合は下記に☑）
C18: ☑ | D18: 浜松市天竜材の家百年住居る事業費補助金の交付申請にあたり、下記事項について誓約し、承諾します。 （１）次に掲げる者のいずれにも該当しません。 ・暴力団（浜松市暴力団排除条例(平成２４年浜松市条例第８１号。以下「条例」という。)第２条第１号に規定する暴力団をいう。） ・暴力団員等（条例第２条第４号に規定する暴力団員等をいう。以下同じ。） ・暴力団員等と密接な関係を有する者 ・（法人その他の団体の場合）上記３点に掲げる者のいずれかが役員等（無限責任社員、取締役、執行役若しくは監査役又はこれらに準じるべきもの、支配人及び清算人をいう。）となっている法人その他の団体 （２）浜松市が暴力団排除に必要な場合には、静岡県警察本部又は管轄警察署に照会することを承諾します。 | M18: ←□をチェック
B19: 住宅の概要 | C19: 建設場所 | F19: 浜松市中央区元目町120-1
C20: 延床面積 | F20: 123.45 | G20: m2 | H20: 構造材の総使用量 （延床面積×0.2×0.7） | K20: =F20*0.2*0.7 -> 17.283 | L20: m3
C21: 上棟予定日 | F21: 令和８年７月２０日 | H21: 完了予定日 | K21: 令和８年10月15日
B22: ＦＳＣ認証材 | C22: 構造材使用量 （小数点以下４桁まで記入） | F22: 15.1243 | G22: m3 | H22: 内装材使用量 （小数点以下４桁まで記入） | K22: 0 | L22: m3
C23: 使用量の合計（小数点以下4桁まで記入） | K23: =F22+K22 -> 15.1243 | L23: m3
C24: ＦＳＣ認証材の使用割合（％） | K24: =IF(F22/K20*100>=80,"80%以上","80％未満") -> 80%以上
B25: 補助額 | C25: １㎥あたり | F25: 20000 | G25: 円 | H25: 補助額 | K25: =MIN(T25,S25) -> 302000 | L25: 円 | S25: 400000 | T25: =ROUNDDOWN((F22+K22)*F25,-3) -> 302000
C26: COC取得工務店加算 | E26: 有 | F26: =IF(T26=1,"100,000",0) -> 100,000 | G26: 円 | H26: 総補助額 | K26: =K25+F26 -> 402000 | L26: 円 | M26: ←COC取得工務店加算の有無 プルダウンから選択 | T26: =COUNTIF(E26,"有") -> 1
B27: 請負業者 | C27: 事業所名 | F27: (株)浜松建設 | H27: 住所 | I27: 浜松市天竜区春野町宮川1481
C28: 代表者名 | F28: 浜松 二郎 | H28: 電話 | I28: 053-989-0000
C29: COC認証の有無 | F29: 有 | H29: 認証番号 | I29: SA-COC-001234-5 | M29: ←COC認証の有無 プルダウンから選択
B30: 納入業者 | C30: 事業所名 | F30: (株)令和製材 | H30: 住所 | I30: 浜松市天竜区二俣町二俣481
C31: 代表者名 | F31: 令和 三郎 | H31: 電話 | I31: 053-926-0000
C32: COC認証番号 | F32: SA-COC-003456 | H32: 担当木協 | I32: 北遠木材協同組合
C33: しずおか優良木材認定製品又はＪＡＳ認定製品 | L33: 〇 | M33: ←しずおか優良木材認定製品又はJAS認定製品の〇× プルダウンから選択
B34: 添付書類 | F34: 木拾い表 | H34: ☑ | M34: ←添付書類の□をチェック
F35: 建築確認済証 | H35: ☑
F36: 各階平面図 | H36: ☑
F37: 現地案内図 | H37: ☑
F38: COC認証番号を証明する書類 | H38: ☑

Sheet 申請様式（手書き用）
B1: （様式第1号）
B2: 補助金交付申請書
D3: 年 月 日
B4: 浜松市長 様
B6: 年度において浜松市天竜材の家百年住居る事業を実施したいので、浜松市天竜材の家百年住居る事業費補助金交付要綱の第4条に基づき下記のとおり申請いたします。
B7: 補助金申請額 | L7: 円
B8: 申 込 者 | C8: 現住所 | F8: 〒
C10: ふりがな
C11: 氏 名
F12: （署名又は記名押印をしてください）
C13: 生年月日 | F13: 大・昭・平 | H13: 年 | J13: 月 | L13: 日
C14: 電話番号
C15: 市税の納付又は納入の確認について同意（同意する場合は下記に☑）
D16: 浜松市天竜材の家百年住居る事業費補助金要綱第２条の規定により、市において、申請者の市税の納付又は納入状況について確認することに同意します。
C17: 暴力団排除に関する誓約（誓約及び承諾する場合は下記に☑）
D18: 浜松市天竜材の家百年住居る事業費補助金の交付申請にあたり、下記事項について誓約し、承諾します。 （１）次に掲げる者のいずれにも該当しません。 ・暴力団（浜松市暴力団排除条例(平成２４年浜松市条例第８１号。以下「条例」という。)第２条第１号に規定する暴力団をいう。） ・暴力団員等（条例第２条第４号に規定する暴力団員等をいう。以下同じ。） ・暴力団員等と密接な関係を有する者 ・（法人その他の団体の場合）上記３点に掲げる者のいずれかが役員等（無限責任社員、取締役、執行役若しくは監査役又はこれらに準じるべきもの、支配人及び清算人をいう。）となっている法人その他の団体 （２）浜松市が暴力団排除に必要な場合には、静岡県警察本部又は管轄警察署に照会することを承諾します。
B19: 住宅の概要 | C19: 建設場所
C20: 延床面積 | G20: m2 | H20: 構造材の総使用量 （延床面積×0.2×0.7） | L20: m3
C21: 上棟予定日 | F21: 年 月 日 | H21: 完了予定日 | K21: 年 月 日
B22: ＦＳＣ認証材 | C22: 構造材使用量 （小数点以下４桁まで記入） | G22: m3 | H22: 内装材使用量 （小数点以下４桁まで記入） | L22: m3
C23: 使用量の合計（小数点以下4桁まで記入） | L23: m3
C24: ＦＳＣ認証材の使用割合（％）
B25: 補助額 | C25: １㎥あたり | F25: 20000 | G25: 円 | H25: 補助額 | L25: 円
C26: COC取得工務店加算 | E26: 有・無 | G26: 円 | H26: 総補助額 | L26: 円
B27: 請負業者 | C27: 事業所名 | H27: 住所
C28: 代表者名 | H28: 電話
C29: COC認証の有無 | F29: 有・無 | H29: 認証番号
B30: 納入業者 | C30: 事業所名 | H30: 住所
C31: 代表者名 | H31: 電話
C32: COC認証番号 | H32: 担当木協
C33: しずおか優良木材認定製品又はＪＡＳ認定製品 | K33: 〇・✕
B34: 添付書類 | F34: 木拾い表
F35: 建築確認済証
F36: 各階平面図
F37: 現地案内図
F38: COC認証番号を証明する書類

Sheet 木拾い表
A1: （様式第２号） | L1: Ｎｏ.１
A3: 木 拾 い 表 （ 当初 ・ 変更 ）
J4: 2026-05-05
A6: １ 施主名
A7: 建築場所
A8: ２ 請負業者 | G8: ℡
A9: ３ 納材業者 | G9: ℡
A10: FSC-COC認証番号(枝番がある場合は枝番まで記入)：
A11: FSCの種類：
A13: No | B13: 用途 | C13: 樹種 | D13: 寸法 | G13: 数量 本 | H13: 単材積 ㎥ | I13: 材積 小計 ㎥ | J13: ＦＳＣ 使用 | K13: 製造 業者名 | L13: 検査 ﾁｪｯｸ
D14: 厚mm | E14: 幅mm | F14: 長 ｍ
A15: 1 | H15: =ROUND(D15*E15*F15/1000000,4) -> 0 | I15: =G15*H15 -> 0
A16: 2 | H16: =ROUND(D16*E16*F16/1000000,4) -> 0 | I16: =G16*H16 -> 0
A17: 3 | H17: 0 | I17: =G17*H17 -> 0
A18: 4 | H18: 0 | I18: =G18*H18 -> 0
A19: 5 | H19: 0 | I19: =G19*H19 -> 0
A20: 6 | H20: 0 | I20: 0
A21: 7 | H21: 0 | I21: 0
A22: 8 | H22: 0 | I22: 0
A23: 9 | H23: 0 | I23: 0
A24: 10 | H24: 0 | I24: 0
A25: 11 | H25: 0 | I25: 0
A26: 12 | H26: 0 | I26: 0
A27: 13 | H27: 0 | I27: 0
A28: 14 | H28: 0 | I28: 0
A29: 15 | H29: 0 | I29: 0
A30: 16 | H30: 0 | I30: 0
A31: 17 | H31: 0 | I31: 0
A32: 18 | H32: 0 | I32: 0
A33: 19 | H33: 0 | I33: 0
A34: 20 | H34: 0 | I34: 0
A35: 21 | H35: 0 | I35: 0
A36: 22 | H36: 0 | I36: 0
A37: 23 | H37: 0 | I37: 0
A38: 24 | H38: 0 | I38: 0
A39: 25 | H39: 0 | I39: 0
A40: 26 | H40: 0 | I40: 0
A41: 27 | H41: 0 | I41: 0
A42: 28 | H42: 0 | I42: 0
A43: 29 | H43: 0 | I43: 0
A44: 30 | H44: 0 | I44: 0
A45: 31 | H45: 0 | I45: 0
A46: 32 | H46: 0 | I46: 0
A47: 33 | H47: 0 | I47: 0
A48: 34 | H48: 0 | I48: 0
A49: 35 | H49: 0 | I49: 0
A50: 36 | H50: 0 | I50: 0
A51: 37 | H51: 0 | I51: 0
A52: 38 | H52: 0 | I52: 0
A53: 39 | H53: 0 | I53: 0
A54: 40 | H54: 0 | I54: 0
A55: 41 | H55: 0 | I55: 0
A56: 42 | H56: 0 | I56: 0
A57: 43 | H57: 0 | I57: 0
A58: 44 | H58: 0 | I58: 0
A59: 45 | H59: 0 | I59: 0
A60: 小 計 | D60: 全体 | G60: =SUM(G15:G59) -> 0 | I60: =SUM(I15:I59) -> 0
D61: （うちＦＳＣ） | G61: =SUMIF(J15:J59,"○",G15:G59) -> 0 | I61: =SUMIF(J15:J59,"○",I15:I59) -> 0
A63: 合 計 | D63: 全体 | G63: =G60+木拾い表２!G60 -> 0 | I63: =I60+木拾い表２!I60 -> 0
D64: （うちＦＳＣ） | G64: 0 | I64: 0
B67: 用途 | C67: 樹種 | J67: FSC使用
B68: 小屋束 | C68: 杉 | J68: ○
B69: 棟木 | C69: 桧 | J69: ×
B70: 火打ばり | C70: 松
B71: 小屋梁 | C71: 広葉樹
B72: 母屋
B73: 垂木
B74: 軒桁
B75: 筋違い
B76: 通し柱
B77: 半柱
B78: 間柱
B79: 2階床梁
B80: 胴差
B81: 管柱
B82: 窓まぐさ
B83: 窓台
B84: 根太
B85: 大引き
B86: 木製床束
B87: 土台
B88: 天井
B89: 床
B90: 内壁

Sheet 木拾い表２
A1: （様式第２号） | L1: Ｎｏ.２
A3: 木 拾 い 表 （ 当初 ・ 変更 ）
J4: =木拾い表!J4 -> 2026-05-05
A6: １ 施主名 | C6: =木拾い表!C6 -> 0
A7: 建築場所 | C7: =木拾い表!C7 -> 0
A8: ２ 請負業者 | C8: =木拾い表!C8 -> 0 | G8: ℡ | H8: =木拾い表!H8 -> 0
A9: ３ 納材業者 | C9: =木拾い表!C9 -> 0 | G9: ℡ | H9: =木拾い表!H9 -> 0
A10: FSC-COC認証番号(枝番がある場合は枝番まで記入)： | I10: =木拾い表!I10 -> 0
A11: FSCの種類： | D11: =木拾い表!D11 -> 0
A13: No | B13: 用途 | C13: 樹種 | D13: 寸法 | G13: 数量 本 | H13: 単材積 ㎥ | I13: 材積 小計 ㎥ | J13: ＦＳＣ 使用 | K13: 製造 業者名 | L13: 検査 ﾁｪｯｸ
D14: 厚mm | E14: 幅mm | F14: 長 ｍ
A15: 1 | H15: =ROUND(D15*E15*F15/1000000,4) -> 0 | I15: =G15*H15 -> 0
A16: 2 | H16: =ROUND(D16*E16*F16/1000000,4) -> 0 | I16: =G16*H16 -> 0
A17: 3 | H17: 0 | I17: 0
A18: 4 | H18: 0 | I18: 0
A19: 5 | H19: 0 | I19: 0
A20: 6 | H20: 0 | I20: 0
A21: 7 | H21: 0 | I21: 0
A22: 8 | H22: 0 | I22: 0
A23: 9 | H23: 0 | I23: 0
A24: 10 | H24: 0 | I24: 0
A25: 11 | H25: 0 | I25: 0
A26: 12 | H26: 0 | I26: 0
A27: 13 | H27: 0 | I27: 0
A28: 14 | H28: 0 | I28: 0
A29: 15 | H29: 0 | I29: 0
A30: 16 | H30: 0 | I30: 0
A31: 17 | H31: 0 | I31: 0
A32: 18 | H32: 0 | I32: 0
A33: 19 | H33: 0 | I33: 0
A34: 20 | H34: 0 | I34: 0
A35: 21 | H35: 0 | I35: 0
A36: 22 | H36: 0 | I36: 0
A37: 23 | H37: 0 | I37: 0
A38: 24 | H38: 0 | I38: 0
A39: 25 | H39: 0 | I39: 0
A40: 26 | H40: 0 | I40: 0
A41: 27 | H41: 0 | I41: 0
A42: 28 | H42: 0 | I42: 0
A43: 29 | H43: 0 | I43: 0
A44: 30 | H44: 0 | I44: 0
A45: 31 | H45: 0 | I45: 0
A46: 32 | H46: 0 | I46: 0
A47: 33 | H47: 0 | I47: 0
A48: 34 | H48: 0 | I48: 0
A49: 35 | H49: 0 | I49: 0
A50: 36 | H50: 0 | I50: 0
A51: 37 | H51: 0 | I51: 0
A52: 38 | H52: 0 | I52: 0
A53: 39 | H53: 0 | I53: 0
A54: 40 | H54: 0 | I54: 0
A55: 41 | H55: 0 | I55: 0
A56: 42 | H56: 0 | I56: 0
A57: 43 | H57: 0 | I57: 0
A58: 44 | H58: 0 | I58: 0
A59: 45 | H59: 0 | I59: =G59*H59 -> 0
A60: 小 計 | D60: 全体 | G60: =SUM(G15:G59) -> 0 | I60: =SUM(I15:I59) -> 0
D61: （うちＦＳＣ） | G61: =SUMIF(J15:J59,"○",G15:G59) -> 0 | I61: =SUMIF(J15:J59,"○",I15:I59) -> 0
B64: 用途 | C64: 樹種 | J64: FSC使用
B65: 小屋束 | C65: 杉 | J65: ○
B66: 棟木 | C66: 桧 | J66: ×
B67: 火打ばり | C67: 松
B68: 小屋梁 | C68: 広葉樹
B69: 母屋
B70: 垂木
B71: 軒桁
B72: 筋違い
B73: 通し柱
B74: 半柱
B75: 間柱
B76: 2階床梁
B77: 胴差
B78: 管柱
B79: 窓まぐさ
B80: 窓台
B81: 根太
B82: 大引き
B83: 木製床束
B84: 土台
B85: 天井
B86: 床
B87: 内壁

Sheet 木拾い表（記入例）
A1: （様式第２号） | L1: Ｎｏ.１
A3: 木 拾 い 表 （ 当初 ・ 変更 ）
J4: 2026-05-05
A6: １ 施主名 | C6: 林業 太郎
A7: 建築場所 | C7: 浜松市中央区元目町120-1
A8: ２ 請負業者 | C8: ㈱浜松建設 | G8: TEL | H8: 053-989-0000
A9: ３ 納材業者 | C9: ㈱令和製材 | G9: TEL | H9: 053-926-0000
A10: FSC-COC認証番号(枝番がある場合は枝番まで記入)： | H10: SGSHK-COC-03456
A11: FSCの種類： | D11: FSC100％
A13: No | B13: 用途 | C13: 樹種 | D13: 寸法 | G13: 数量 本 | H13: 単材積 ㎥ | I13: 材積 小計 ㎥ | J13: ＦＳＣ 使用 | K13: 製造 業者名 | L13: 検査 ﾁｪｯｸ
D14: 厚mm | E14: 幅mm | F14: 長 ｍ
A15: 1 | B15: 土台 | C15: 桧 | D15: 120 | E15: 120 | F15: 4 | G15: 20 | H15: =ROUND(D15*E15*F15/1000000,4) -> 0.0576 | I15: =G15*H15 -> 1.152 | J15: ○ | K15: 令和製材 | L15: 優良
A16: 2 | B16: 土台 | C16: 桧 | D16: 105 | E16: 120 | F16: 4 | G16: 1 | H16: =ROUND(D16*E16*F16/1000000,4) -> 0.0504 | I16: =G16*H16 -> 0.0504 | J16: ○ | K16: 令和製材 | L16: 優良
A17: 3 | B17: 大引き | C17: 杉 | D17: 110 | E17: 120 | F17: 4 | G17: 3 | H17: 0.0528 | I17: 0.1584 | J17: ○ | K17: 令和製材 | L17: 優良
A18: 4 | B18: 大引き | C18: 杉 | D18: 110 | E18: 120 | F18: 3 | G18: 1 | H18: 0.0396 | I18: 0.0396 | J18: ○ | K18: 令和製材 | L18: 優良
A19: 5 | B19: 大引き | C19: 杉 | D19: 105 | E19: 107 | F19: 3 | G19: 1 | H19: 0.0337 | I19: 0.0337 | J19: ○ | K19: 令和製材 | L19: 優良
A20: 6 | B20: 大引き | C20: 杉 | D20: 105 | E20: 105 | F20: 4 | G20: 39 | H20: 0.0441 | I20: 1.7199 | J20: ○ | K20: 令和製材 | L20: 優良
A21: 7 | B21: 大引き | C21: 杉 | D21: 105 | E21: 105 | F21: 3 | G21: 1 | H21: 0.13 | I21: 0.13 | J21: ○ | K21: 令和製材 | L21: 優良
A22: 8 | B22: 火打ばり | C22: 杉 | D22: 120 | E22: 270 | F22: 4 | G22: 3 | H22: 0.1296 | I22: 0.3888 | J22: ○ | K22: 令和製材 | L22: 優良
A23: 9 | B23: 小屋梁 | C23: 杉 | D23: 120 | E23: 240 | F23: 5 | G23: 3 | H23: 0.144 | I23: 0.432 | J23: ○ | K23: 令和製材 | L23: 優良
A24: 10 | B24: 筋違い | C24: 杉 | D24: 120 | E24: 240 | F24: 3 | G24: 7 | H24: 0.0864 | I24: 0.6048 | J24: ○ | K24: 令和製材 | L24: 優良
A25: 11 | B25: 母屋 | C25: 杉 | D25: 120 | E25: 240 | F25: 5 | G25: 3 | H25: 0.144 | I25: 0.432 | J25: ○ | K25: 令和製材 | L25: 優良
A26: 12 | B26: 母屋 | C26: 杉 | D26: 120 | E26: 240 | F26: 4 | G26: 8 | H26: 0.1152 | I26: 0.9216 | J26: ○ | K26: 令和製材 | L26: 優良
A27: 13 | B27: 半柱 | C27: 桧 | D27: 120 | E27: 120 | F27: 6 | G27: 4 | H27: 0.0864 | I27: 0.3456 | J27: ○ | K27: 令和製材 | L27: 優良
A28: 14 | B28: 通し柱 | C28: 桧 | D28: 120 | E28: 120 | F28: 3 | G28: 80 | H28: 0.0432 | I28: 3.456 | J28: ○ | K28: 令和製材 | L28: 優良
A29: 15 | B29: 間柱 | C29: 杉 | D29: 60 | E29: 120 | F29: 3 | G29: 50 | H29: 0.0216 | I29: 1.08 | J29: ○ | K29: 令和製材 | L29: 優良
A30: 16 | B30: 間柱 | C30: 杉 | D30: 60 | E30: 96 | F30: 3 | G30: 2 | H30: 0.0173 | I30: 0.0346 | J30: ○ | K30: 令和製材 | L30: 優良
A31: 17 | B31: 間柱 | C31: 杉 | D31: 45 | E31: 120 | F31: 3 | G31: 16 | H31: 0.0162 | I31: 0.2592 | J31: ○ | K31: 令和製材 | L31: 優良
A32: 18 | B32: 間柱 | C32: 杉 | D32: 45 | E32: 108 | F32: 3 | G32: 3 | H32: 0.0146 | I32: 0.0438 | J32: ○ | K32: 令和製材 | L32: 優良
A33: 19 | B33: 間柱 | C33: 杉 | D33: 45 | E33: 96 | F33: 3 | G33: 39 | H33: 0.013 | I33: 0.507 | J33: ○ | K33: 令和製材 | L33: 優良
A34: 20 | B34: 垂木 | C34: 杉 | D34: 45 | E34: 105 | F34: 3 | G34: 144 | H34: 0.0142 | I34: 2.0448 | J34: ○ | K34: 令和製材 | L34: 優良
A35: 21 | B35: 垂木 | C35: 杉 | D35: 90 | E35: 90 | F35: 3 | G35: 8 | H35: 0.0243 | I35: 0.1944 | J35: ○ | K35: 令和製材 | L35: 優良
A36: 22 | B36: 間柱 | C36: 杉 | D36: 45 | E36: 90 | F36: 4 | G36: 28 | H36: =ROUND(D36*E36*F36/1000000,4) -> 0.0162 | I36: 0.4536 | J36: ○ | K36: 令和製材 | L36: JAS
A37: 23 | B37: 間柱 | C37: 杉 | D37: 45 | E37: 108 | F37: 3 | G37: 1 | H37: 0.0146 | I37: 0.0146 | J37: ○ | K37: 令和製材 | L37: JAS
A38: 24 | B38: 間柱 | C38: 杉 | D38: 45 | E38: 96 | F38: 4 | G38: 5 | H38: 0.0173 | I38: 0.0865 | J38: ○ | K38: 令和製材 | L38: JAS
A39: 25 | B39: 間柱 | C39: 杉 | D39: 45 | E39: 96 | F39: 3 | G39: 1 | H39: 0.013 | I39: 0.013 | J39: ○ | K39: 令和製材 | L39: JAS
A40: 26 | B40: 床 | C40: 桧 | D40: 20 | E40: 90 | F40: 1.82 | G40: 160 | H40: 0.0033 | I40: 0.528 | J40: ○ | K40: 令和製材
A41: 27 | H41: 0 | I41: 0
A42: 小 計 | D42: 全体 | G42: =SUM(G15:G41) -> 631 | I42: =SUM(I15:I41) -> 15.1243
D43: （うちＦＳＣ） | G43: =SUMIF(J15:J41,"○",G15:G40) -> 631 | I43: =SUMIF(J15:J41,"○",I15:I41) -> 15.1243
A45: 合 計 | D45: 全体 | G45: =G42 -> 631 | I45: ①
D46: （うちＦＳＣ） | I46: ②
B49: 用途 | C49: 樹種 | J49: FSC使用
B50: 小屋束 | C50: 杉 | J50: ○
B51: 棟木 | C51: 桧 | J51: ×
B52: 火打ばり | C52: 松
B53: 小屋梁 | C53: 広葉樹
B54: 母屋
B55: 垂木
B56: 軒桁
B57: 筋違い
B58: 通し柱
B59: 半柱
B60: 間柱
B61: 2階床梁
B62: 胴差
B63: 管柱
B64: 窓まぐさ
B65: 窓台
B66: 根太
B67: 大引き
B68: 木製床束
B69: 土台
B70: 天井
B71: 床
B72: 内壁

Sheet 変更申請様式
B1: （様式第４号）
B2: 補助金変更承認申請書
D3: 年 月 日
B4: 浜松市長 様
B6: 年 月 日付浜松市指令産林第 号で補助金交付の決定を受けた 年度浜松市天竜材の家百年住居る事業費補助金の計画を下記のとおり変更したいので、浜松市天竜材の家百年住居る事業費補助金交付要綱第６条の規定により申請します。
B7: 補助金申請額（変更後） | L7: =N28 -> 0 | P7: 円
B8: 申 請 者 | C8: 現住所 | F8: 〒
C10: ふりがな
C11: 氏 名
F12: （署名又は記名押印をしてください）
C13: 電話番号
B14: 以下、変更内容を記載
B15: 変更事項 | E15: 有無 | F15: 変更前（申請時） | K15: ⇒ | L15: 変更後
B16: 面積・ 上棟日 | C16: 延床面積の変更 | E16: 無 | I16: ㎡ | K16: ⇒ | O16: ㎡
C17: 上棟日の変更 | E17: 無 | F17: 年 月 日 | K17: ⇒ | L17: 年 月 日
B18: ＦＳＣ 認証材 | C18: 構造材使用量 | E18: 有 | I18: m3 | K18: ⇒ | P18: m3
C19: 内装材使用量 | E19: 無 | I19: m3 | K19: ⇒ | P19: m3
B20: 変更理由
B25: 以下、審査欄（申請者記入不用）
B26: ＦＳＣ認証材の使用割合（％） | F26: =IF(F18/Q35*100>=80,"80%以上","80％未満") ->  | K26: FSC認証材使用量 | N26: =L18+L19 -> 0 | P26: m3
B27: 補助額 | C27: １㎥あたり | J27: 円 | K27: 補助額 | N27: =MIN(V27,U27) -> 0 | P27: 円 | U27: 400000 | V27: =ROUNDDOWN((L18+L19)*F27,-3) -> 0
C28: COC取得工務店加算 | F28: 無 | G28: =IF(Q28=1,"100,000",0) -> 0 | J28: 円 | K28: 総補助額 | N28: =N27+G28 -> 0 | P28: 円 | Q28: =COUNTIF(F28,"有") -> 0
B29: 添付書類 | F29: 木拾い表
M35: 構造材の総使用量 （延床面積×0.2×0.7） | Q35: =L16*0.2*0.7 -> 0 | R35: m3

Sheet 変更申請様式（記入例）
B1: （様式第４号）
B2: 補助金変更承認申請書
D3: 令和８年６月５日
B4: 浜松市長 様
B6: 令和８年５月１０日付浜松市指令産林第１００号で補助金交付の決定を受けた令和８年度浜松市天竜材の家百年住居る事業費補助金の計画を下記のとおり変更したいので、浜松市天竜材の家百年住居る事業費補助金交付要綱第６条の規定により申請します。
B7: 補助金申請額（変更後） | L7: =N28 -> 424000 | P7: 円
B8: 申 請 者 | C8: 現住所 | F8: 〒 | G8: 430-8652
F9: 浜松市中央区元城町103-2
C10: ふりがな | F10: りんぎょう たろう
C11: 氏 名 | F11: 林業 太郎
F12: （署名又は記名押印をしてください）
C13: 電話番号 | F13: 090-1234-5678
B14: 以下、変更内容を記載
B15: 変更事項 | E15: 有無 | F15: 変更前（申請時） | K15: ⇒ | L15: 変更後
B16: 面積・上棟日 | C16: 延床面積の変更 | E16: 無 | F16: 123.45 | I16: ㎡ | K16: ⇒ | L16: 123.45 | O16: ㎡
C17: 上棟日の変更 | E17: 無 | F17: 令和８年７月２０日 | K17: ⇒ | L17: 令和８年８月１０日
B18: ＦＳＣ 認証材 | C18: 構造材使用量 | E18: 有 | F18: 15.1243 | I18: m3 | K18: ⇒ | L18: 16.1234 | P18: m3
C19: 内装材使用量 | E19: 有 | F19: 0 | I19: m3 | K19: ⇒ | L19: 0.1234 | P19: m3
B20: 変更理由 | E20: 令和7年５月31日に発生した豪雨の影響により、地盤改良が必要
E21: となり基礎工事が遅れるため
E22: 構造変更のため木材使用量が増加した
B25: 以下、審査欄（申請者記入不用）
B26: ＦＳＣ認証材の使用割合（％） | F26: =IF(F18/Q35*100>=80,"80%以上","80％未満") -> 80%以上 | J26: OK | K26: FSC認証材使用量 | N26: =L18+L19 -> 16.2468 | P26: m3
B27: 補助額 | C27: １㎥あたり | F27: 20000 | J27: 円 | K27: 補助額 | N27: =MIN(V27,U27) -> 324000 | P27: 円 | U27: 400000 | V27: =ROUNDDOWN((L18+L19)*F27,-3) -> 324000
C28: COC取得工務店加算 | F28: 有 | G28: =IF(Q28=1,"100,000",0) -> 100,000 | J28: 円 | K28: 総補助額 | N28: =N27+G28 -> 424000 | P28: 円 | Q28: =COUNTIF(F28,"有") -> 1
B29: 添付書類 | F29: 木拾い表 | I29: ☑
M35: 構造材の総使用量 （延床面積×0.2×0.7） | Q35: =L16*0.2*0.7 -> 17.283 | R35: m3

Sheet 変更申請様式 (手書き用)
B1: （様式第４号）
B2: 補助金変更承認申請書
D3: 年 月 日
B4: 浜松市長 様
B6: 年 月 日付浜松市指令産林第 号で補助金交付の決定を受けた 年度浜松市天竜材の家百年住居る事業費補助金の計画を下記のとおり変更したいので、浜松市天竜材の家百年住居る事業費補助金交付要綱第６条の規定により申請します。
B7: 補助金申請額（変更後） | P7: 円
B8: 申 請 者 | C8: 現住所 | F8: 〒
C10: ふりがな
C11: 氏 名
F12: （署名又は記名押印をしてください）
C13: 電話番号
B14: 以下、変更内容を記載
B15: 変更事項 | E15: 有無 | F15: 変更前（申請時） | K15: ⇒ | L15: 変更後
B16: 面積・上棟日 | C16: 延床面積の変更 | E16: 有・無 | I16: ㎡ | K16: ⇒ | O16: ㎡
C17: 上棟日の変更 | E17: 有・無 | F17: 年 月 日 | K17: ⇒ | L17: 年 月 日
B18: ＦＳＣ 認証材 | C18: 構造材使用量 | E18: 有・無 | I18: m3 | K18: ⇒ | P18: m3
C19: 内装材使用量 | E19: 有・無 | I19: m3 | K19: ⇒ | P19: m3
B20: 変更理由
B25: 以下、審査欄（申請者記入不用）
B26: ＦＳＣ認証材の使用割合（％） | J26: OK | K26: FSC認証材使用量 | P26: m3
B27: 補助額 | C27: １㎥あたり | F27: 20000 | J27: 円 | K27: 補助額 | P27: 円 | U27: 400000 | V27: =ROUNDDOWN((L18+L19)*F27,-3) -> 0
C28: COC取得工務店加算 | F28: 有・無 | J28: 円 | K28: 総補助額 | P28: 円 | Q28: =COUNTIF(F28,"有") -> 0
B29: 添付書類 | F29: 木拾い表
M35: 構造材の総使用量 （延床面積×0.2×0.7） | Q35: =L16*0.2*0.7 -> 0 | R35: m3

Sheet 実績報告様式
B2: （様式第７号）
B3: 実績報告書
B4: 年 月 日
B5: 浜松市長 様
B7: 年 月 日付浜松市指令産林第 号で補助金交付の決定を受けた 年度浜松市天竜材の家百年住居る事業が完了したので浜松市天竜材の家百年住居る事業費補助金交付要綱第9条の規定により報告します。
B8: 交付申請額 | I8: =J18 -> 0 | K8: 円
B9: 申 請 者 | C9: 現住所 | E9: 〒
C11: 氏 名
E12: （署名又は記名押印してください）
C13: 電話番号
B14: 事業完了年月日（上棟日） | E14: 年 月 日
B15: ＦＳＣ | C15: 構造材使用量 （小数点以下４桁まで記入） | F15: m3 | G15: 内装材使用量 （小数点以下４桁まで記入） | K15: m3
C16: ＦＳＣ認証材使用量 | J16: =E15+J15 -> 0 | K16: m3
B17: 補助額 | C17: 1㎥あたり | E17: 20000 | F17: 円 | G17: 補助額 | J17: =MIN(P17,N17) -> 0 | K17: 円 | N17: 400000 | P17: =ROUNDDOWN((J16*E17),-3) -> 0
C18: COC取得 工務店加算 | D18: 無 | E18: =IF(L18=1,"100,000",0) -> 0 | F18: 円 | G18: 総補助額 | J18: =J17+E18 -> 0 | K18: 円 | L18: =COUNTIF(D18,"有") -> 0
B19: 添付書類 | E19: 県産材販売管理票
E20: 検査合格書又はしずおか優良木材出荷証明書等
E21: 上棟時の写真・内装材使用の場合は施工後の写真

Sheet 実績報告様式 (記入例)
B2: （様式第７号）
B3: 実績報告書
B4: 令和８年９月５日
B5: 浜松市長 様
B7: 令和８年６月５日付浜松市指令産林第１５０号で補助金交付の決定を受けた令和８年度浜松市天竜材の家百年住居る事業が完了したので浜松市天竜材の家百年住居る事業費補助金交付要綱第9条の規定により報告します。
B8: 交付申請額 | I8: =J18 -> 424000 | K8: 円
B9: 申 請 者 | C9: 現住所 | E9: 〒 | F9: 430-8652
E10: 浜松市中央区元城町103-2
C11: 氏 名 | E11: 林業 太郎
E12: （署名又は記名押印してください）
C13: 電話番号 | E13: 090-1234-5678
B14: 事業完了年月日（上棟日） | E14: 令和８年８月１０日
B15: ＦＳＣ | C15: 構造材使用量 （小数点以下４桁まで記入） | E15: 16.1234 | F15: m3 | G15: 内装材使用量 （小数点以下４桁まで記入） | J15: 0.1234 | K15: m3
C16: ＦＳＣ認証材使用量 | J16: =E15+J15 -> 16.2468 | K16: m3
B17: 補助額 | C17: 1㎥あたり | E17: 20000 | F17: 円 | G17: 補助額 | J17: =MIN(P17,N17) -> 324000 | K17: 円 | N17: 400000 | P17: =ROUNDDOWN((J16*E17),-3) -> 324000
C18: COC取得 工務店加算 | D18: 有 | E18: =IF(L18=1,"100,000",0) -> 100,000 | F18: 円 | G18: 総補助額 | J18: =J17+E18 -> 424000 | K18: 円 | L18: =COUNTIF(D18,"有") -> 1
B19: 添付書類 | E19: 県産材販売管理票 | K19: ☑
E20: 検査合格書又はしずおか優良木材出荷証明書等 | K20: ☑
E21: 上棟時の写真・内装材使用の場合は施工後の写真 | K21: ☑

Sheet 実績報告様式 (手書き用)
B2: （様式第７号）
B3: 実績報告書
B4: 年 月 日
B5: 浜松市長 様
B7: 年 月 日付浜松市指令産林第 号で補助金交付の決定を受けた 年度浜松市天竜材の家百年住居る事業が完了したので浜松市天竜材の家百年住居る事業費補助金交付要綱第9条の規定により報告します。
B8: 交付申請額 | K8: 円
B9: 申 請 者 | C9: 現住所 | E9: 〒
C11: 氏 名
E12: （署名又は記名押印してください）
C13: 電話番号
B14: 事業完了年月日（上棟日） | E14: 年 月 日
B15: ＦＳＣ | C15: 構造材使用量 （小数点以下４桁まで記入） | F15: m3 | G15: 内装材使用量 （小数点以下４桁まで記入） | K15: m3
C16: ＦＳＣ認証材使用量 | K16: m3
B17: 補助額 | C17: 1㎥あたり | E17: 20000 | F17: 円 | G17: 補助額 | K17: 円
C18: COC取得 工務店加算 | D18: 有・無 | F18: 円 | G18: 総補助額 | K18: 円
B19: 添付書類 | E19: 県産材販売管理票
E20: 検査合格書又はしずおか優良木材出荷証明書等
E21: 上棟時の写真・内装材使用の場合は施工後の写真
